bitfinex/quotes_ETHUSD_20240707
["timestamp","ask_amount","ask_price","bid_price","bid_amount"]
[1720353338423,6.9133,3022.9,3022.5,2.3159]
[1720353339590,6.9133,3022.9,3022.5,4.63182]
[1720353340657,6.9133,3022.9,3022.5,2.3159]
[1720353340834,6.9133,3022.9,3022.4,3.0]
[1720353341328,6.9133,3022.9,3022.4,2.31602]
[1720353341657,6.9133,3022.9,3022.4,5.31602]
[1720353342417,6.9133,3022.9,3022.5,2.31595]
[1720353342624,6.9133,3022.9,3022.5,5.31595]
[1720353342820,6.9133,3022.9,3022.5,2.31595]
[1720353343257,6.9133,3023.1,3022.6,2.31584]
[1720353343451,0.07074304,3023.0,3022.6,2.31584]
[1720353344333,0.07074304,3023.0,3022.4,3.0]
[1720353344550,0.07074304,3023.0,3022.3,2.31605]
[1720353344551,6.9133,3022.9,3022.3,5.31605]
[1720353344754,6.9133,3022.9,3022.3,3.0]
[1720353344922,0.07069422,3022.8,3022.2,5.64040102]
[1720353345262,6.9133,3022.7,3022.2,5.31618]
[1720353345460,0.07064539,3022.6,3022.2,5.31618]
[1720353346561,0.07064539,3022.6,3022.3,2.31611]
[1720353346721,0.07064539,3022.6,3022.3,5.31611]
[1720353347126,0.07064539,3022.6,3022.4,3.0]
[1720353347327,0.07064539,3022.6,3022.3,2.31611]
[1720353348372,0.07064539,3022.6,3022.4,2.31604]
[1720353348555,0.07064539,3022.6,3022.4,5.31604]
[1720353348755,6.9133,3023.2,3022.4,5.31604]
[1720353348947,0.07062098,3022.5,3022.4,7.63208]
[1720353349265,6.9133,3023.2,3022.6,4.63169]
[1720353349477,0.07084447,3023.1,3022.7,2.31581]
[1720353350189,6.9133,3023.2,3022.7,2.31581]
[1720353350482,0.07084447,3023.1,3022.7,2.31581]
[1720353350703,6.9133,3023.2,3022.7,2.31581]
[1720353351038,0.07084447,3023.1,3022.7,2.31581]
[1720353351239,6.9133,3023.2,3022.7,2.31581]
[1720353351482,0.07067761,3023.1,3022.7,2.31581]
[1720353351988,6.9133,3023.2,3022.7,2.31581]
[1720353352344,0.07079313,3023.1,3022.7,2.31581]
[1720353352859,6.9133,3023.2,3022.7,2.51581]
[1720353353172,0.07084448,3023.1,3022.7,2.51581]
[1720353353492,6.9133,3023.2,3022.7,2.51581]
[1720353353988,0.07085478,3023.1,3022.7,2.51581]
[1720353354489,6.9313,3024.1,3022.8,7.1897]
[1720353354668,7.0139754,3024.1,3023.2,2.3154]
[1720353354871,0.06629265,3024.0,3023.1,2.31543]
[1720353355178,6.9313,3023.9,3023.1,2.31543]
[1720353355543,6.9313,3023.9,3023.3,2.31534]
[1720353355744,0.06624387,3023.8,3023.2,3.0]
[1720353355989,6.9313,3023.7,3022.9,3.0]
[1720353356194,0.14892408,3023.8,3022.8,3.0]
[1720353356195,6.9313,3023.5,3022.8,3.0]
[1720353356548,0.0661142,3023.4,3022.9,2.31558]
[1720353356750,6.9313,3023.3,3022.8,3.0]
[1720353356985,7.01399239,3023.2,3022.8,1.02]
[1720353357195,7.08005779,3023.2,3022.7,0.4]
[1720353357710,7.08005779,3023.2,3022.3,2.31607]
[1720353357875,7.08005779,3023.2,3022.1,0.32938768]
[1720353358199,7.01399239,3023.2,3022.0,1.5]
[1720353358398,7.01399239,3023.2,3022.3,2.31606]
[1720353358696,6.99745697,3023.1,3022.4,2.31603]
[1720353359057,6.99745697,3023.1,3022.4,5.31603]
[1720353359259,6.99745697,3023.1,3022.5,3.0]
[1720353359496,6.99745697,3023.1,3022.5,5.31596]
[1720353359714,6.99745697,3023.1,3022.6,3.0]
[1720353359876,6.99745697,3023.1,3022.5,2.31596]
[1720353360076,6.99745697,3023.1,3022.5,4.63186]
[1720353360412,6.99745697,3023.1,3022.6,3.0]
[1720353361011,6.99745697,3023.1,3022.5,2.3159]
[1720353361613,6.99745697,3023.1,3022.6,2.31588]
[1720353361818,6.99745697,3023.1,3022.6,5.31588]
[1720353361989,6.9313,3023.1,3022.6,5.31588]
[1720353362189,6.9313,3023.1,3022.8,2.31567]
[1720353362396,0.06613256,3023.0,3022.8,2.31567]
[1720353362581,6.9313,3023.1,3022.5,5.31592]
[1720353362782,6.9313,3023.1,3022.5,2.31592]
[1720353363230,6.9313,3022.9,3021.9,2.31642]
[1720353363433,3.0,3023.5,3021.6,1.5]
[1720353363434,6.9313,3022.7,3021.6,1.5]
[1720353363787,6.9313,3022.5,3021.9,2.31639]
[1720353364119,0.06585349,3022.4,3021.9,2.31639]
[1720353364414,6.9313,3022.3,3021.7,2.31653]
[1720353364804,6.9313,3022.1,3021.5,2.71668]
[1720353365115,0.06581657,3022.0,3021.5,2.71666]
[1720353365413,0.06581657,3022.0,3021.6,2.3166]
[1720353367231,0.06581657,3022.0,3021.7,2.31656]
[1720353368081,0.06581657,3022.0,3021.7,4.79907]
[1720353368385,0.06581657,3022.0,3021.8,2.31649]
[1720353368939,6.9313,3022.1,3021.8,2.31649]
[1720353370050,6.9313,3022.1,3021.7,2.48251]
[1720353371135,6.9313,3022.1,3021.7,0.166]
[1720353378106,6.9313,3022.1,3021.5,2.71666]
[1720353378307,6.9313,3022.1,3021.6,2.31658]
[1720353379118,6.9313,3022.1,3021.7,2.31656]
[1720353379522,6.9313,3022.1,3021.8,2.31649]
[1720353380007,6.9313,3022.1,3021.7,2.31507561]
[1720353380202,6.9313,3022.1,3021.8,2.31644]
[1720353381755,2.5761,3023.0,3021.9,2.31639]
[1720353381756,6.7761,3022.9,3021.9,2.31639]
[1720353381906,6.85881441,3022.9,3022.0,2.31631]
[1720353382109,6.85881451,3022.8,3021.9,2.31487353]
[1720353382307,6.83846252,3022.8,3022.1,2.31619]
[1720353382842,6.83846252,3022.8,3022.1,2.31469693]
[1720353383531,6.83846252,3022.8,3022.2,2.31618]
[1720353384545,6.83846252,3022.8,3022.3,2.31611]
[1720353384910,6.83846252,3022.8,3022.0,8.58601361]
[1720353385135,6.7761,3022.8,3022.0,8.58601361]
[1720353385539,0.06239013,3022.7,3022.0,10.08601361]
[1720353385718,0.06239013,3022.7,3022.5,2.31595]
[1720353385924,0.06239013,3022.7,3022.6,2.31588]
[1720353386239,6.7761,3023.0,3022.7,2.31576]
[1720353386425,6.7761,3023.0,3022.7,4.6315]
[1720353386823,6.7761,3023.0,3022.7,2.31405699]
[1720353387029,6.7761,3023.4,3022.7,2.31405699]
[1720353387376,6.7761,3023.4,3022.8,2.31572]
[1720353388013,6.7761,3023.4,3022.6,2.31588]
[1720353388209,0.08269364,3023.3,3022.6,2.31588]
[1720353388414,6.7761,3023.2,3022.6,2.31588]
[1720353389057,6.7761,3023.2,3022.4,2.31476366]
[1720353389217,6.7761,3023.2,3022.6,2.31581]
[1720353389938,6.7761,3023.2,3022.4,2.31476366]
[1720353390141,6.7761,3023.2,3022.6,2.31581]
[1720353390448,6.7761,3023.2,3022.7,2.3158]
[1720353391362,6.7761,3023.2,3022.6,2.314397]
[1720353391914,6.7761,3023.2,3022.3,3.0]
[1720353392130,6.7761,3023.2,3022.6,2.31582]
[1720353392329,6.7761,3023.2,3022.2,1.5]
[1720353392330,6.7761,3023.2,3022.4,2.316]
[1720353393249,6.7761,3023.2,3022.4,2.31482366]
[1720353393450,6.7761,3023.2,3022.5,2.31596]
[1720353393652,6.7761,3023.0,3022.2,2.31613]
[1720353394022,6.7761,3022.8,3021.9,2.95690163]
[1720353394366,6.7761,3022.8,3022.2,2.31619]
[1720353394826,6.7761,3022.8,3022.0,2.3163]
[1720353395028,6.7761,3022.8,3021.6,2.31661]
[1720353395254,0.08270836,3022.7,3021.8,2.31644]
[1720353395435,7.2761,3022.6,3021.8,2.31644]
[1720353395840,0.05983355,3022.5,3021.8,2.31644]
[1720353396235,0.05983355,3022.5,3021.6,2.31531023]
[1720353396553,0.05983355,3022.5,3021.8,2.31645]
[1720353396760,7.2761,3022.4,3021.7,3.0]
[1720353396945,7.2761,3022.4,3021.7,2.31656]
[1720353397257,0.05970178,3022.3,3021.7,5.31656]
[1720353397452,0.05970178,3022.3,3021.7,3.0]
[1720353397656,0.05970178,3022.3,3021.6,2.31664]
[1720353397867,7.2761,3022.4,3021.4,2.31676]
[1720353398164,7.2761,3022.4,3021.3,1.5]
[1720353398514,7.2761,3022.4,3021.1,6.7564]
[1720353399164,7.2761,3022.4,3021.2,3.0]
[1720353399530,0.08271971,3022.3,3021.2,3.0]
[1720353399720,7.2761,3022.7,3021.3,2.31688]
[1720353399920,0.05954273,3022.2,3021.3,2.31688]
[1720353400128,7.2761,3022.1,3021.3,2.31688]
[1720353400560,0.05946634,3022.0,3021.1,2.3156429]
[1720353401058,7.2761,3022.1,3021.3,2.31683]
[1720353401424,7.2761,3022.1,3021.3,4.63364]
[1720353401662,7.2761,3022.1,3021.4,3.0]
[1720353402047,7.2761,3022.1,3021.4,1.01]
[1720353402390,7.2761,3022.1,3021.4,2.31678]
[1720353402960,7.2761,3022.1,3021.3,2.31537995]
[1720353403278,7.2761,3022.1,3021.3,2.31682]
[1720353404445,7.2761,3022.1,3021.3,4.63364]
[1720353404648,7.2761,3022.1,3021.4,2.35]
[1720353405079,7.2761,3022.1,3021.4,0.03186668]
[1720353405282,7.2761,3022.1,3021.3,4.63364]
[1720353406649,7.2761,3022.1,3021.3,2.31682]
[1720353406855,7.2761,3022.1,3021.1,2.31701]
[1720353407184,7.2761,3022.1,3021.0,2.99883668]
[1720353407391,7.2761,3022.1,3021.2,2.3169]
[1720353407587,7.2761,3022.1,3021.1,2.31696]
[1720353407965,7.2761,3022.1,3020.8,10.89028618]
[1720353408290,7.2761,3022.1,3021.3,2.31686]
[1720353412608,7.2761,3022.1,3021.3,4.63368]
[1720353412903,7.2761,3022.1,3021.4,3.0]
[1720353413268,7.2761,3022.1,3021.3,2.31682]
[1720353417272,7.2761,3022.1,3021.3,4.63365]
[1720353417493,7.2761,3022.1,3021.4,3.0]
[1720353419588,7.2761,3022.1,3022.0,0.2]
[1720353421489,7.2761,3022.1,3021.4,3.0]
[1720353421689,7.2761,3022.1,3021.5,2.31671]
[1720353422570,7.2761,3022.1,3021.4,3.0]
[1720353422771,7.2761,3022.1,3021.3,2.31682]
[1720353422966,7.2761,3022.1,3021.3,2.31681]
[1720353423170,7.2761,3022.1,3021.4,2.31676]
[1720353423342,7.2761,3022.1,3021.4,5.31676]
[1720353423545,7.2761,3022.1,3021.5,2.31671]
[1720353423743,7.2761,3022.1,3021.3,3.0]
[1720353424054,7.2761,3022.1,3021.8,2.31648]
[1720353425289,7.2761,3022.1,3021.7,2.31652]
[1720353426393,7.2761,3022.1,3021.8,2.31649]
[1720353426594,7.2761,3022.1,3021.4,3.17973793]
[1720353426899,7.2761,3022.1,3021.7,2.31652]
[1720353427101,7.2761,3022.1,3021.4,3.17973793]
[1720353427390,7.2761,3022.1,3021.7,2.31652]
[1720353428301,7.2761,3022.1,3021.3,2.31685]
[1720353428462,7.2761,3022.1,3021.3,5.31685]
[1720353428799,7.2761,3022.1,3021.5,2.31667]
[1720353429513,7.2761,3022.1,3021.3,5.31587353]
[1720353429859,7.2761,3022.1,3021.5,2.31667]
[1720353430666,7.2761,3022.1,3021.3,7.63268353]
[1720353431186,7.2761,3022.1,3021.3,5.31583353]
[1720353432007,7.2761,3022.1,3021.3,1.00902353]
[1720353432161,7.2761,3022.1,3021.2,0.33785155]
[1720353432366,7.2761,3022.1,3021.1,7.81393382]
[1720353432601,7.2761,3022.1,3021.1,7.81410683]
[1720353432836,7.2761,3022.1,3021.1,2.31698]
[1720353433107,7.2761,3022.1,3021.1,5.49709266]
[1720353433415,7.2761,3022.1,3021.1,7.81405266]
[1720353434234,7.2761,3022.1,3021.2,3.0]
[1720353434444,7.2761,3022.1,3021.2,5.31694]
[1720353435324,7.2761,3022.1,3021.2,3.0]
[1720353435903,7.2761,3022.1,3021.2,1.74305921]
[1720353436119,7.2761,3022.1,3021.1,3.5170995]
[1720353436320,7.2761,3022.1,3021.2,1.68435013]
[1720353438155,7.4405,3021.9,3020.9,3.18102781]
[1720353438317,7.4405,3021.7,3021.0,1.68450379]
[1720353438514,7.4405,3021.7,3020.8,3.0]
[1720353438743,7.49796056,3021.6,3020.6,2.01196449]
[1720353438921,7.49796056,3021.6,3020.5,4.98581939]
[1720353439113,7.4405,3021.6,3020.6,6.76135313]
[1720353439351,7.4405,3021.6,3020.6,2.31737]
[1720353439513,7.4405,3021.4,3020.6,5.31737]
[1720353439952,0.05731725,3021.3,3020.6,5.31737]
[1720353440141,7.4405,3021.2,3020.6,5.31737]
[1720353440449,0.05726839,3021.1,3020.6,5.31737]
[1720353441252,7.4405,3021.0,3020.6,3.0]
[1720353441451,7.49770765,3021.0,3020.5,1.95596993]
[1720353441851,7.49770765,3021.0,3020.6,2.31737]
[1720353442152,7.49770765,3021.0,3020.6,5.31737]
[1720353442620,7.49770765,3021.0,3020.6,3.0]
[1720353442819,7.49770765,3021.0,3020.6,2.31737]
[1720353443143,7.49770765,3021.0,3020.6,5.31737]
[1720353443518,7.49770765,3021.0,3020.6,3.0]
[1720353443728,7.49770765,3021.0,3020.6,2.31737]
[1720353444053,7.49770765,3021.0,3020.6,5.31737]
[1720353444251,7.49770765,3021.0,3020.6,3.0]
[1720353444561,7.49770765,3021.0,3020.6,2.31737]
[1720353444761,7.49770765,3021.0,3020.6,5.31737]
[1720353445265,7.49770765,3021.0,3020.4,0.32279244]
[1720353445266,7.49770765,3021.0,3020.5,3.0]
[1720353445562,7.49770765,3021.0,3020.6,2.31737]
[1720353446060,7.49770765,3021.0,3020.5,3.0]
[1720353446269,7.49770765,3021.0,3020.3,5.3176]
[1720353446452,7.49770765,3021.0,3020.6,2.31737]
[1720353447169,0.05720765,3021.0,3020.7,7.191]
[1720353447339,0.05720765,3021.0,3020.8,3.0]
[1720353447543,7.4405,3021.5,3020.8,3.0]
[1720353447743,0.05703363,3020.9,3020.6,5.31736]
[1720353447939,7.4405,3021.5,3020.6,5.31736]
[1720353448249,7.4405,3021.5,3020.9,0.2]
[1720353448454,0.05715576,3021.4,3020.9,0.2]
[1720353451672,7.4405,3021.5,3020.9,0.2]
[1720353462466,7.4405,3021.5,3020.9,3.2]
[1720353464182,7.0183,3021.9,3021.3,2.31687]
[1720353464373,7.0183,3021.9,3021.5,2.31666]
[1720353464575,7.0183,3022.7,3021.5,3.81666]
[1720353464893,0.05533401,3022.6,3021.7,4.63304]
[1720353465273,7.0183,3022.7,3021.7,4.63304]
[1720353465460,7.0183,3022.7,3021.7,2.31652]
[1720353465883,7.0183,3022.5,3021.7,4.63303]
[1720353466259,0.05543248,3022.4,3021.7,4.63303]
[1720353466458,0.05543248,3022.4,3021.8,2.31649]
[1720353466872,0.05543248,3022.4,3021.7,2.28666575]
[1720353467080,0.05543248,3022.4,3021.8,2.31649]
[1720353469374,0.05543248,3022.4,3021.7,1.8277175]
[1720353469761,0.05543248,3022.4,3021.8,2.31644]
[1720353470266,0.05543248,3022.4,3021.7,1.82633103]
[1720353470908,0.05543248,3022.4,3021.8,2.31644]
[1720353473009,0.05543248,3022.4,3021.6,3.0]
[1720353473166,7.0183,3022.3,3021.7,2.31657]
[1720353473701,0.05348879,3022.2,3021.7,2.31657]
[1720353475399,0.05348879,3022.2,3021.6,2.99874353]
[1720353476008,0.05348879,3022.2,3021.7,2.31657]
[1720353477207,0.05348879,3022.2,3021.7,4.63308]
[1720353477549,0.05348879,3022.2,3021.7,2.31517683]
[1720353478376,0.05348879,3022.2,3022.1,0.2]
[1720353478762,7.0183,3022.3,3022.1,0.2]
[1720353482486,7.0183,3022.3,3022.1,0.4]
[1720353484171,7.1843,3022.3,3022.1,0.4]
[1720353484571,0.05140352,3022.2,3022.1,0.4]
[1720353484998,7.1843,3022.3,3022.1,0.4]
[1720353485224,0.05160067,3022.2,3022.1,0.4]
[1720353485440,7.1843,3022.3,3022.1,0.4]
[1720353485638,0.05160067,3022.2,3022.1,0.4]
[1720353485808,7.1843,3022.3,3022.1,0.4]
[1720353486327,0.05160067,3022.2,3022.1,0.4]
[1720353486534,0.05160067,3022.2,3022.1,0.6]
[1720353486689,7.1843,3022.3,3022.1,0.6]
[1720353486894,0.05160067,3022.2,3022.1,0.6]
[1720353487124,7.1843,3022.3,3022.1,0.6]
[1720353487326,0.05160067,3022.2,3022.1,0.6]
[1720353487738,7.1843,3022.3,3022.1,0.6]
[1720353489113,7.1843,3022.3,3021.6,2.31663]
[1720353490034,7.1843,3022.3,3021.7,2.31652]
[1720353490200,7.1843,3022.3,3021.7,4.63303]
[1720353490906,7.1843,3022.3,3021.7,2.21652]
[1720353491115,7.1843,3022.3,3021.7,2.08652]
[1720353492043,7.1843,3022.3,3021.6,3.0]
[1720353494215,7.1843,3022.3,3021.5,2.65330549]
[1720353494216,7.1843,3022.3,3021.5,2.63330549]
[1720353494428,7.1843,3022.3,3021.6,3.0]
[1720353494719,7.1843,3022.3,3021.4,5.31676]
[1720353496625,7.1843,3022.3,3021.6,2.31664]
[1720353498379,7.1843,3022.3,3021.6,5.31664]
[1720353503763,7.1843,3022.3,3021.6,5.31659]
[1720353504473,7.1843,3022.3,3021.6,3.0]
[1720353504680,7.1843,3022.3,3021.4,7.63351]
[1720353504860,7.1843,3022.3,3021.5,2.31672]
[1720353505060,7.1843,3022.3,3021.5,7.6334]
[1720353506194,7.1843,3022.3,3021.5,5.31668]
[1720353506392,7.1843,3022.3,3021.5,2.31668]
[1720353506891,7.1843,3022.3,3021.4,3.0]
[1720353507191,7.1843,3022.3,3021.5,1.68416059]
[1720353507792,7.1843,3022.3,3021.4,5.31679]
[1720353507987,7.1843,3022.3,3021.5,1.68413372]
[1720353509125,7.1843,3022.3,3021.5,4.00085372]
[1720353509416,7.1843,3022.3,3021.6,4.68413372]
[1720353509605,7.1843,3022.3,3021.7,1.68413372]
[1720353511524,7.1843,3022.3,3021.8,1.68413372]
[1720353513129,7.1843,3022.3,3021.9,1.68413372]
[1720353513421,7.1843,3022.3,3021.4,2.31677]
[1720353513422,7.1843,3022.3,3021.5,3.0]
[1720353513625,7.1843,3022.3,3021.6,1.68411036]
[1720353513998,7.1843,3022.3,3021.5,2.69411036]
[1720353514198,7.1843,3022.3,3021.4,2.31675]
[1720353514692,7.1843,3022.3,3021.3,0.32126548]
[1720353515040,7.1843,3022.3,3021.2,2.31692]
[1720353515323,7.1843,3022.3,3021.6,2.31663]
[1720353515489,7.1843,3022.3,3021.6,2.10663]
[1720353515827,7.1843,3022.3,3021.6,4.42326]
[1720353516210,7.1843,3022.3,3021.7,2.31652]
[1720353522789,7.1843,3022.3,3021.6,3.0]
[1720353522906,7.1843,3022.3,3021.5,2.31666]
[1720353523588,7.1843,3022.3,3021.4,3.0]
[1720353523793,7.1843,3022.3,3021.3,5.31681]
[1720353525727,0.08272192,3022.2,3021.3,3.0]
[1720353526031,7.4074,3022.1,3021.2,3.32894812]
[1720353526243,7.4074,3022.1,3021.2,3.0]
[1720353526989,0.166,3022.3,3021.1,7.28]
[1720353526990,7.4074,3021.9,3021.1,7.28]
[1720353527238,7.4074,3021.7,3020.7,2.65554917]
[1720353527443,7.4074,3021.7,3020.5,1.5]
[1720353527598,7.45899384,3021.6,3020.7,2.3173]
[1720353528207,7.45899384,3021.6,3020.5,1.5]
[1720353528953,7.45899384,3021.6,3020.7,4.63456]
[1720353529108,7.45899384,3021.6,3020.8,3.0]
[1720353530035,7.45899384,3021.6,3020.8,5.31726]
[1720353530845,7.45899384,3021.6,3020.8,3.0]
[1720353531506,7.45899384,3021.6,3020.7,2.31727]
[1720353531736,7.4074,3021.6,3020.7,2.31727]
[1720353532134,7.4074,3021.6,3020.7,6.13457]
[1720353532352,7.4074,3021.6,3020.8,3.0]
[1720353532852,0.05136647,3021.5,3020.8,3.0]
[1720353533753,0.05136647,3021.5,3020.8,5.31726]
[1720353533967,0.05136647,3021.5,3020.9,1.68441875]
[1720353536259,0.05136647,3021.5,3020.9,2.31717]
[1720353537549,0.05136647,3021.5,3020.9,2.31713]
[1720353537728,7.4391,3021.4,3020.9,2.31713]
[1720353537940,0.05130739,3021.3,3020.8,3.0]
[1720353538351,7.4391,3021.2,3020.8,3.0]
[1720353538732,0.0511885,3021.1,3020.8,3.0]
[1720353538933,0.0511885,3021.1,3020.8,5.31722]
[1720353543377,0.0511885,3021.1,3020.9,2.31717]
[1720353544451,0.0511885,3021.1,3020.8,5.31726]
[1720353544769,7.1667,3021.0,3020.8,3.0]
[1720353544940,7.1667,3021.0,3020.6,5.31736]
[1720353545449,7.1667,3021.0,3020.6,3.0]
[1720353545661,7.1667,3021.0,3020.5,3.0]
[1720353545834,7.1667,3021.0,3020.4,5.3175]
[1720353546036,7.1667,3021.0,3020.4,5.63980871]
[1720353547766,7.1667,3021.0,3020.4,1.06666358]
[1720353547967,7.1667,3021.0,3020.4,0.32230871]
[1720353548275,7.1667,3021.0,3020.3,2.31757]
[1720353548681,7.1667,3021.0,3020.1,2.31778]
[1720353548889,7.1667,3021.0,3020.0,2.31785]
[1720353549477,7.1667,3021.0,3019.8,3.818]
[1720353549865,7.1667,3021.0,3020.0,2.31783]
[1720353550076,7.24945717,3020.9,3019.8,2.31797]
[1720353550412,0.05098448,3020.8,3019.6,2.31815]
[1720353550541,7.1667,3020.7,3019.4,0.33119971]
[1720353550756,7.1667,3020.5,3019.5,1.68376174]
[1720353551262,7.1667,3020.3,3019.4,2.64947971]
[1720353551485,0.05067412,3020.2,3019.4,2.64947971]
[1720353551990,0.05067412,3020.2,3019.5,2.31824]
[1720353552170,0.05067412,3020.2,3019.4,2.64947971]
[1720353552580,0.05067412,3020.2,3019.5,5.31825]
[1720353552933,7.1667,3020.3,3019.5,5.31825]
[1720353553101,7.1667,3020.3,3019.6,2.31817]
[1720353554997,7.1667,3020.3,3019.5,2.99861483]
[1720353555159,7.1667,3020.3,3019.6,2.31811]
[1720353555686,7.1667,3020.3,3019.6,2.31673483]
[1720353556051,7.1667,3020.3,3019.6,4.63485483]
[1720353556285,7.1667,3020.3,3019.7,2.31811]
[1720353556505,7.1667,3020.3,3019.6,2.31532961]
[1720353556997,7.1667,3020.3,3019.7,2.31811]
[1720353557203,7.1667,3020.3,3019.7,5.31811]
[1720353558500,7.1667,3020.3,3020.0,2.31783]
[1720353558796,7.0493,3020.6,3020.1,2.31773]
[1720353558956,7.0493,3020.6,3020.1,5.31773]
[1720353559154,0.05083783,3020.5,3020.1,5.31773]
[1720353560198,0.05083783,3020.5,3020.1,5.3178]
[1720353560575,7.0493,3020.6,3020.1,5.3178]
[1720353563604,7.0493,3020.6,3020.2,2.31769]
[1720353563810,7.0493,3020.6,3020.2,5.31769]
[1720353564322,7.0493,3020.6,3020.2,2.31769]
[1720353564963,7.0493,3020.6,3020.2,4.63535]
[1720353566531,7.0493,3020.6,3020.2,2.31766]
[1720353571864,7.0493,3020.6,3020.2,4.63533]
[1720353572156,7.0493,3020.6,3020.2,2.31766]
[1720353574051,7.0493,3020.6,3020.2,4.63534]
[1720353575091,7.0493,3020.6,3020.2,2.31766]
[1720353575448,7.0493,3020.6,3020.1,3.0]
[1720353575664,7.0493,3020.6,3020.2,3.0]
[1720353575868,6.9976594,3020.5,3019.8,3.0]
[1720353576067,6.9976594,3020.5,3019.7,3.0]
[1720353576268,6.9976594,3020.5,3019.5,2.31819]
[1720353576269,6.9976594,3020.5,3019.6,2.31813]
[1720353576601,6.9976594,3020.5,3019.6,5.31813]
[1720353576765,6.9976594,3020.5,3019.6,5.31713884]
[1720353576966,6.9976594,3020.5,3019.6,2.31814]
[1720353577265,6.9976594,3020.5,3019.6,4.63627]
[1720353577468,6.9466,3020.5,3019.6,4.63627]
[1720353577666,6.9466,3020.5,3019.6,2.31813]
[1720353577887,6.9466,3020.3,3019.6,2.31813]
[1720353579782,0.05090088,3020.2,3019.6,2.31813]
[1720353579974,6.9466,3020.1,3019.6,2.31813]
[1720353582113,0.05083385,3020.0,3019.6,2.31813]
[1720353584378,0.05083385,3020.0,3019.5,3.0]
[1720353584579,6.9466,3020.1,3019.5,5.31825]
[1720353586811,6.9466,3020.1,3019.5,3.0]
[1720353588118,6.9466,3020.1,3019.5,5.31825]
[1720353593425,6.9466,3020.1,3019.6,1.68509159]
[1720353598124,6.9466,3020.1,3020.0,0.2]
[1720353601205,6.9466,3020.1,3019.4,1.21]
[1720353601444,6.9466,3020.1,3019.3,2.3184]
[1720353601597,6.9466,3020.1,3019.4,1.68523796]
[1720353601798,6.9466,3020.1,3019.2,2.31848]
[1720353602026,6.9466,3020.1,3019.3,1.68526091]
[1720353602330,6.9466,3020.1,3020.0,0.2]
[1720353609073,6.9466,3020.1,3019.2,5.49]
[1720353609361,6.8575,3019.9,3019.2,5.49]
[1720353609565,6.94029632,3019.8,3019.2,3.17017752]
[1720353609866,7.63432595,3019.8,3019.2,3.17017752]
[1720353610427,7.63432595,3019.8,3019.2,1.18017752]
[1720353611367,7.63432595,3019.8,3018.6,1.84696198]
[1720353611524,6.8575,3019.8,3018.7,2.31887]
[1720353611720,6.8575,3019.8,3018.9,2.31868]
[1720353612267,0.08278927,3019.7,3018.7,2.31883]
[1720353612428,6.8575,3019.7,3018.7,2.31883]
[1720353612628,6.8575,3019.7,3018.7,4.63765]
[1720353612827,6.8575,3019.7,3018.8,3.0]
[1720353613248,6.8575,3019.7,3018.7,2.31882]
[1720353613945,6.8575,3019.7,3018.7,2.26882]
[1720353614255,6.8575,3019.7,3018.7,4.58764]
[1720353614463,6.8575,3019.7,3018.8,5.31879]
[1720353614679,6.8575,3019.7,3018.8,2.31879]
[1720353614902,6.8575,3019.7,3018.9,2.31872]
[1720353615187,6.8575,3019.7,3019.1,2.31852]
[1720353615606,6.8575,3019.7,3019.1,4.63702]
[1720353615783,6.8575,3019.7,3019.2,3.0]
[1720353616074,7.4508,3020.1,3019.3,2.31836]
[1720353616372,7.4508,3020.1,3019.3,4.63672]
[1720353616577,7.4508,3020.1,3019.4,3.0]
[1720353616875,7.4508,3020.1,3019.3,2.31836]
[1720353617338,7.4508,3020.1,3019.2,3.0]
[1720353617544,7.4508,3019.9,3019.1,1.96]
[1720353617742,7.4508,3019.7,3018.9,3.0]
[1720353617976,7.50092339,3019.6,3018.7,2.31881]
[1720353618174,0.08279428,3019.5,3018.5,4.63696752]
[1720353618379,7.4508,3019.4,3018.6,2.31893]
[1720353618678,2.5761,3020.2,3018.5,2.64507328]
[1720353618679,7.50086038,3019.3,3018.5,2.64507328]
[1720353619644,7.50086038,3019.3,3018.6,3.0]
[1720353620158,7.50086038,3019.3,3018.5,2.31797752]
[1720353620489,7.50086038,3019.3,3018.3,2.31914]
[1720353620490,7.50086038,3019.3,3018.4,2.31905]
[1720353620648,7.4508,3019.3,3018.3,2.65378191]
[1720353620848,0.04998887,3019.2,3018.4,2.31905]
[1720353621044,7.4508,3019.1,3018.4,2.31905]
[1720353621244,0.04997846,3019.0,3018.4,2.31905]
[1720353621994,0.04997846,3019.0,3018.5,2.319]
[1720353622192,0.04997846,3019.0,3018.5,2.31897]
[1720353622682,7.4508,3019.1,3018.6,4.00445255]
[1720353622841,7.4508,3019.1,3018.6,2.31894]
[1720353624056,7.4508,3019.1,3018.7,2.31881]
[1720353624261,7.4508,3019.7,3018.9,2.31867]
[1720353624603,0.04834914,3019.6,3018.7,2.31881]
[1720353624906,7.4508,3019.5,3018.7,2.31881]
[1720353625196,7.4508,3019.3,3018.5,2.31896]
[1720353625400,0.04830023,3019.2,3018.5,2.31896]
[1720353625696,7.4508,3019.1,3018.5,2.31896]
[1720353626006,7.49903729,3019.1,3018.5,2.31896]
[1720353626161,7.49903729,3019.1,3018.4,3.0]
[1720353626362,7.49903729,3019.1,3018.5,2.31897]
[1720353626803,7.49903729,3019.1,3018.5,4.63795]
[1720353627164,7.49903729,3019.1,3018.6,2.31894]
[1720353627863,7.49903729,3019.1,3018.8,2.31878]
[1720353629163,7.49903729,3019.1,3018.6,2.31894]
[1720353629389,7.4508,3019.1,3018.4,5.31906]
[1720353629590,0.04807809,3019.0,3018.5,2.31902]
[1720353630412,0.04807809,3019.0,3018.6,2.31895]
[1720353631569,0.04807809,3019.0,3018.8,2.31879]
[1720353632861,0.04807809,3019.0,3018.5,2.31902]